fUST/lending_fUST_20251125
["ID","MTS","AMOUNT","RATE_DAILY","PERIOD"]
[394882123,1764060632508,-500.0,6.644e-05,2]
[394882124,1764060632517,-500.0,6.644e-05,2]
[394882125,1764060632526,-500.0,6.644e-05,2]
[394882126,1764060632535,-500.0,6.644e-05,2]
[394882127,1764060632544,-500.0,6.644e-05,2]
[394882128,1764060632554,-500.0,6.644e-05,2]
[394882129,1764060632563,-500.0,6.644e-05,2]
[394882130,1764060632572,-500.0,6.644e-05,2]
[394882131,1764060632580,-500.0,6.644e-05,2]
[394882132,1764060632590,-500.0,6.644e-05,2]
[394882133,1764060632599,-511.48119632,6.644e-05,2]
[394882134,1764060632607,-500.0,6.644e-05,2]
[394882135,1764060632616,-500.0,6.644e-05,2]
[394882136,1764060632626,-500.0,6.644e-05,2]
[394882137,1764060632635,-500.0,6.644e-05,2]
[394882138,1764060632644,-500.0,6.644e-05,2]
[394882139,1764060632653,-500.0,6.644e-05,2]
[394882140,1764060632662,-500.0,6.644e-05,2]
[394882141,1764060632671,-500.0,6.644e-05,2]
[394882142,1764060632681,-500.0,6.644e-05,2]
[394882143,1764060632690,-349.231239,6.644e-05,2]
[394882144,1764060632699,-500.0,6.644e-05,2]
[394882145,1764060632708,-500.0,6.644e-05,2]
[394882146,1764060632717,-500.0,6.644e-05,2]
[394882147,1764060632726,-500.0,6.644e-05,2]
[394882148,1764060632736,-500.0,6.644e-05,2]
[394882149,1764060632745,-500.0,6.644e-05,2]
[394882150,1764060632754,-500.0,6.644e-05,2]
[394882151,1764060632763,-452.62505345,6.644e-05,2]
[394882152,1764060632773,-500.0,6.644e-05,2]
[394882153,1764060632782,-500.0,6.644e-05,2]
[394882154,1764060632791,-500.0,6.644e-05,2]
[394882155,1764060632800,-500.0,6.644e-05,2]
[394882156,1764060632809,-500.0,6.644e-05,2]
[394882157,1764060632818,-500.0,6.644e-05,2]
[394882158,1764060632827,-500.0,6.644e-05,2]
[394882159,1764060632836,-500.0,6.644e-05,2]
[394882160,1764060632845,-500.0,6.644e-05,2]
[394882161,1764060632855,-500.0,6.644e-05,2]
[394882162,1764060632865,-500.0,6.644e-05,2]
[394882163,1764060632875,-500.0,6.644e-05,2]
[394882164,1764060632884,-381.58920825,6.644e-05,2]
[394882165,1764060632893,-500.0,6.644e-05,2]
[394882166,1764060632903,-500.0,6.644e-05,2]
[394882167,1764060632913,-500.0,6.644e-05,2]
[394882168,1764060632922,-500.0,6.644e-05,2]
[394882169,1764060632932,-500.0,6.644e-05,2]
[394882170,1764060632941,-500.0,6.644e-05,2]
[394882171,1764060632950,-500.0,6.644e-05,2]
[394882172,1764060632960,-500.0,6.644e-05,2]
[394882173,1764060632969,-500.0,6.644e-05,2]
[394882174,1764060632979,-500.0,6.644e-05,2]
[394882175,1764060632989,-500.0,6.644e-05,2]
[394882176,1764060632998,-500.0,6.644e-05,2]
[394882177,1764060633009,-500.0,6.644e-05,2]
[394882178,1764060633019,-500.0,6.644e-05,2]
[394882179,1764060633030,-500.0,6.644e-05,2]
[394882180,1764060633041,-500.0,6.644e-05,2]
[394882181,1764060633051,-500.0,6.644e-05,2]
[394882182,1764060633064,-500.0,6.644e-05,2]
[394882183,1764060633075,-500.0,6.644e-05,2]
[394882184,1764060633085,-500.0,6.644e-05,2]
[394882185,1764060633095,-500.0,6.644e-05,2]
[394882186,1764060633107,-500.0,6.644e-05,2]
[394882187,1764060633118,-500.0,6.644e-05,2]
[394882188,1764060633128,-500.0,6.644e-05,2]
[394882189,1764060633139,-500.0,6.644e-05,2]
[394882190,1764060633148,-500.0,6.644e-05,2]
[394882191,1764060633159,-500.0,6.644e-05,2]
[394882192,1764060633169,-500.0,6.644e-05,2]
[394882193,1764060633178,-500.0,6.644e-05,2]
[394882194,1764060633187,-500.0,6.644e-05,2]
[394882195,1764060633198,-500.0,6.644e-05,2]
[394882196,1764060633210,-500.0,6.644e-05,2]
[394882197,1764060633219,-500.0,6.644e-05,2]
[394882198,1764060633229,-500.0,6.644e-05,2]
[394882199,1764060633238,-500.0,6.644e-05,2]
[394882200,1764060633247,-500.0,6.644e-05,2]
[394882201,1764060633257,-500.0,6.644e-05,2]
[394882202,1764060633266,-500.0,6.644e-05,2]
[394882203,1764060633275,-500.0,6.644e-05,2]
[394882204,1764060633285,-500.0,6.644e-05,2]
[394882205,1764060633294,-401.08196661,6.644e-05,2]
[394882206,1764060633303,-500.0,6.644e-05,2]
[394882207,1764060633314,-500.0,6.644e-05,2]
[394882208,1764060633324,-500.0,6.644e-05,2]
[394882209,1764060633334,-500.0,6.644e-05,2]
[394882210,1764060633343,-238.03027217,6.644e-05,2]
[394882211,1764060633353,-500.0,6.645e-05,2]
[394882212,1764060633362,-232.84522327,6.646e-05,2]
[394882213,1764060633371,-119363.29661057,6.647e-05,2]
[394882221,1764060637936,-534.94906441,6.647e-05,2]
[394882222,1764060637948,-553.19985832,6.647e-05,2]
[394882228,1764060640078,-166834.54759716,6.647e-05,2]
[394882230,1764060640091,-3000.067605,6.647e-05,2]
[394882232,1764060641146,-3e-08,6.647e-05,2]
[394882233,1764060641733,9075.0685988,6.58e-05,2]
[394882348,1764060648038,924.9414012,6.547e-05,2]
[394882349,1764060648063,10000.01,6.547e-05,2]
[394882350,1764060648086,10000.01,6.547e-05,2]
[394882351,1764060663151,1699.32679066,6.447e-05,2]
[394882352,1764060664741,300.11123186,6.481e-05,2]
[394882353,1764060665591,-300.0,6.546e-05,2]
[394882354,1764060665614,-126.35690894,6.547e-05,2]
[394882355,1764060667906,-578.69302043,6.547e-05,2]
[394882356,1764060670079,-153.98832922,6.547e-05,2]
[394882357,1764060671682,-210.04305398,6.547e-05,2]
[394882358,1764060673956,-183.34281655,6.547e-05,2]
[394882359,1764060677249,-299.96698545,6.547e-05,2]
[394882360,1764060679683,-347.89351051,6.547e-05,2]
[394882361,1764060679718,150.11123186,6.481e-05,2]
[394882362,1764060681336,-272.22970046,6.547e-05,2]
[394882363,1764060684666,-199.0885471,6.547e-05,2]
[394882364,1764060687655,-215.15572609,6.547e-05,2]
[394882365,1764060689754,-403.67624345,6.547e-05,2]
[394882366,1764060692438,-155.7719901,6.547e-05,2]
[394882367,1764060694770,-171.08889022,6.547e-05,2]
[394882368,1764060698304,-243.88188664,6.547e-05,2]
[394882369,1764060700093,-289.95694602,6.547e-05,2]
[394882370,1764060701884,-153.59194599,6.547e-05,2]
[394882371,1764060702890,434.124,6.416e-05,2]
[394882372,1764060704767,-360.97750021,6.547e-05,2]
[394882373,1764060709442,-270.6481367,6.547e-05,2]
[394882374,1764060713198,-227.84698348,6.547e-05,2]
[394882375,1764060714892,-268.08141748,6.547e-05,2]
[394882376,1764060717798,-250.86094477,6.547e-05,2]
[394882377,1764060720917,-258.95475805,6.547e-05,2]
[394882378,1764060724856,-251.88105233,6.546e-05,2]
[394882379,1764060726630,-48.11894767,6.546e-05,2]
[394882380,1764060726654,-108.76945701,6.547e-05,2]
[394882381,1764060729040,-303.75263424,6.547e-05,2]
[394882382,1764060732685,-331.35058595,6.547e-05,2]
[394882383,1764060737867,-167.41838742,6.547e-05,2]
[394882384,1764060741146,-176.22626387,6.547e-05,2]
[394882385,1764060746330,-188.92525109,6.547e-05,2]
[394882386,1764060748492,-300.0,6.547e-05,2]
[394882387,1764060753303,-410.88892161,6.547e-05,2]
[394882388,1764060756690,-443.53399882,6.546e-05,2]
[394882389,1764060759842,-56.46600118,6.546e-05,2]
[394882390,1764060759867,-247.37443072,6.546e-05,2]
[394882391,1764060763205,-217.02223763,6.546e-05,2]
[394882392,1764060769346,-35.60333165,6.546e-05,2]
[394882393,1764060769368,-153.32191944,6.546e-05,2]
[394882394,1764060772033,-219.09034725,6.546e-05,2]
[394882395,1764060776291,-137.97388412,6.546e-05,2]
[394882396,1764060776315,-162.02611588,6.546e-05,2]
[394882397,1764060778337,-270.94374857,6.546e-05,2]
[394882398,1764060782629,-177.65325322,6.545e-05,2]
[394882399,1764060785917,-122.34674678,6.545e-05,2]
[394882400,1764060785940,-67.03013555,6.546e-05,2]
[394882401,1764060785961,-57.32636309,6.546e-05,2]
[394882402,1764060789790,-500.0,6.546e-05,2]
[394882403,1764060793500,-252.00105545,6.546e-05,2]
[394882404,1764060794074,227.83785221,6.48e-05,2]
[394882405,1764060797547,-159.9115209,6.48e-05,2]
[394882406,1764061005935,-237.96201543,6.457e-05,2]
[394882407,1764061007993,-175.26723728,6.457e-05,2]
[394882408,1764061010112,-164.87319919,6.457e-05,2]
[394882409,1764061012924,-151.65450905,6.457e-05,2]
[394882410,1764061014490,-181.76015069,6.457e-05,2]
[394882411,1764061016074,-183.6345398,6.457e-05,2]
[394882412,1764061097039,-104.84834856,6.457e-05,2]
[394882413,1764061097060,-132.72759951,6.49e-05,2]
[394882414,1764061125968,-175.41883715,6.361e-05,2]
[394882415,1764061125991,-109.99362912,6.425e-05,2]
[394882417,1764061204977,404.0,0.000111,3]
[394882418,1764061210562,-65.42520803,6.425e-05,2]
[394882419,1764061211092,-175.41883715,6.49e-05,2]
[394882420,1764061211112,-300.0,6.522e-05,2]
[394882421,1764061211133,-166.44008619,6.522e-05,2]
[394882422,1764061216535,-133.55991381,6.522e-05,2]
[394882423,1764061216559,-57.71305864,6.522e-05,2]
[394882424,1764061219978,-497.93990066,6.522e-05,2]
[394882425,1764061225921,-170.83143472,6.457e-05,2]
[394882426,1764061226635,-200.19822835,6.522e-05,2]
[394882427,1764061229623,744.14881235,6.457e-05,2]
[394882428,1764061231482,-320.05666794,6.522e-05,2]
[394882429,1764061241411,-124.09214441,6.522e-05,2]
[394882430,1764061241439,-300.0,6.522e-05,2]
[394882431,1764061243196,163.97786068,6.522e-05,2]
[394882432,1764061243238,500.0,6.522e-05,2]
[394882433,1764061243272,491.26891057,6.522e-05,2]
[394882434,1764061243313,500.0,6.522e-05,2]
[394882435,1764061243356,500.0,6.522e-05,2]
[394882436,1764061243410,500.0,6.522e-05,2]
[394882437,1764061243456,500.0,6.522e-05,2]
[394882438,1764061243497,335.15583765,6.522e-05,2]
[394882439,1764061243538,528.1968506,6.522e-05,2]
[394882440,1764061243571,283.1931736,6.522e-05,2]
[394882441,1764061243645,500.0,6.522e-05,2]
[394882442,1764061243710,500.0,6.522e-05,2]
[394882443,1764061243750,500.0,6.522e-05,2]
[394882444,1764061243800,500.0,6.522e-05,2]
[394882445,1764061243862,500.0,6.522e-05,2]
[394882446,1764061243928,500.0,6.522e-05,2]
[394882447,1764061243981,500.0,6.522e-05,2]
[394882448,1764061244218,500.0,6.522e-05,2]
[394882449,1764061244282,500.0,6.522e-05,2]
[394882450,1764061244339,350.03307808,6.522e-05,2]
[394882451,1764061244368,149.96692192,6.522e-05,2]
[394882452,1764061244439,500.0,6.522e-05,2]
[394882453,1764061244497,500.0,6.522e-05,2]
[394882454,1764061244619,500.0,6.522e-05,2]
[394882455,1764061244680,500.0,6.522e-05,2]
[394882456,1764061244751,500.0,6.522e-05,2]
[394882457,1764061244818,500.0,6.522e-05,2]
[394882458,1764061244881,500.0,6.522e-05,2]
[394882459,1764061244945,500.0,6.522e-05,2]
[394882460,1764061244991,500.0,6.522e-05,2]
[394882461,1764061245051,500.0,6.522e-05,2]
[394882462,1764061245106,500.0,6.522e-05,2]
[394882463,1764061245177,500.0,6.522e-05,2]
[394882464,1764061245223,500.0,6.522e-05,2]
[394882465,1764061245277,500.0,6.522e-05,2]
[394882466,1764061245333,500.0,6.522e-05,2]
[394882467,1764061245389,500.0,6.522e-05,2]
[394882468,1764061245439,500.0,6.522e-05,2]
[394882469,1764061245496,500.0,6.522e-05,2]
[394882470,1764061245535,500.0,6.522e-05,2]
[394882471,1764061245616,350.04307808,6.522e-05,2]
[394882472,1764061245644,149.95692192,6.522e-05,2]
[394882473,1764061245695,570.54334959,6.522e-05,2]
[394882474,1764061245908,153.987316,6.457e-05,2]
[394882475,1764061246029,-292.77353698,6.523e-05,2]
[394882476,1764061250126,-207.22646302,6.523e-05,2]
[394882477,1764061250151,-105.37235223,6.523e-05,2]
[394882478,1764061253839,1553.28707411,6.457e-05,2]
[394882479,1764061254749,-185.9360197,6.523e-05,2]
[394882480,1764061256900,-206.68240134,6.523e-05,2]
[394882481,1764061262659,300.0,6.522e-05,2]
[394882482,1764061269634,185.9360197,6.457e-05,2]
[394882483,1764061277453,2242.61375728,6.457e-05,2]
[394882484,1764061300248,2242.61375728,6.457e-05,2]
[394882485,1764061302904,347.299,6.416e-05,2]
[394882486,1764061322650,300.0,6.522e-05,2]
[394882487,1764061322680,2242.61375728,6.457e-05,2]
[394882488,1764061345062,1081.94510421,6.457e-05,2]
[394882489,1764061367574,1056.98860425,6.457e-05,2]
[394882490,1764061367597,24.95649996,6.457e-05,2]
[394882491,1764061368592,-253.73602846,6.523e-05,2]
[394882492,1764061370875,-246.71873127,6.523e-05,2]
[394882493,1764061370896,-8.2747045,6.523e-05,2]
[394882494,1764061373848,-214.82041278,6.523e-05,2]
[394882495,1764061376648,-229.08131882,6.523e-05,2]
[394882496,1764061382793,300.0,6.522e-05,2]
[394882501,1764061404663,225.35520562,6.522e-05,2]
[394882503,1764061421267,500.0,6.522e-05,2]
[394882504,1764061421323,500.0,6.522e-05,2]
[394882505,1764061421360,500.0,6.522e-05,2]
[394882506,1764061421406,500.0,6.522e-05,2]
[394882507,1764061421456,500.0,6.522e-05,2]
[394882508,1764061421491,500.0,6.522e-05,2]
[394882509,1764061421531,500.0,6.522e-05,2]
[394882510,1764061421572,500.0,6.522e-05,2]
[394882511,1764061421607,500.0,6.522e-05,2]
[394882512,1764061421648,500.0,6.522e-05,2]
[394882513,1764061421688,500.0,6.522e-05,2]
[394882514,1764061421729,500.0,6.522e-05,2]
[394882515,1764061421774,500.0,6.522e-05,2]
[394882516,1764061421812,500.0,6.522e-05,2]
[394882517,1764061421851,500.0,6.522e-05,2]
[394882518,1764061421884,500.0,6.522e-05,2]
[394882519,1764061421918,500.0,6.522e-05,2]
[394882520,1764061421953,500.0,6.522e-05,2]
[394882521,1764061422000,449.69829442,6.522e-05,2]
[394882522,1764061422028,50.30170558,6.522e-05,2]
[394882523,1764061422077,500.0,6.522e-05,2]
[394882524,1764061422111,500.0,6.522e-05,2]
[394882525,1764061422147,500.0,6.522e-05,2]
[394882526,1764061422186,500.0,6.522e-05,2]
[394882527,1764061422220,500.0,6.522e-05,2]
[394882528,1764061422253,500.0,6.522e-05,2]
[394882529,1764061422298,500.0,6.522e-05,2]
[394882530,1764061422338,500.0,6.522e-05,2]
[394882531,1764061422378,500.0,6.522e-05,2]
[394882532,1764061422411,500.0,6.522e-05,2]
[394882533,1764061422449,500.0,6.522e-05,2]
[394882534,1764061422483,500.0,6.522e-05,2]
[394882535,1764061422534,500.0,6.522e-05,2]
[394882536,1764061422572,500.0,6.522e-05,2]
[394882537,1764061422615,500.0,6.522e-05,2]
[394882538,1764061422648,191.94448126,6.522e-05,2]
[394882539,1764061422697,500.0,6.522e-05,2]
[394882540,1764061423073,500.0,6.522e-05,2]
[394882541,1764061436410,500.0,6.522e-05,2]
[394882542,1764061436446,500.0,6.522e-05,2]
[394882543,1764061436495,257.76381316,6.522e-05,2]
[394882544,1764061436528,242.23618684,6.522e-05,2]
[394882545,1764061436566,500.0,6.522e-05,2]
[394882546,1764061436614,500.0,6.522e-05,2]
[394882547,1764061436848,500.0,6.522e-05,2]
[394882548,1764061436899,500.0,6.522e-05,2]
[394882549,1764061436937,500.0,6.522e-05,2]
[394882550,1764061436984,500.0,6.522e-05,2]
[394882551,1764061437022,500.0,6.522e-05,2]
[394882552,1764061437067,500.0,6.522e-05,2]
[394882553,1764061437117,500.0,6.522e-05,2]
[394882554,1764061437170,500.0,6.522e-05,2]
[394882555,1764061437208,500.0,6.522e-05,2]
[394882556,1764061437246,500.0,6.522e-05,2]
[394882557,1764061442488,300.0,6.522e-05,2]
[394882559,1764061502477,300.0,6.522e-05,2]
[394882560,1764061503786,-129.31390838,6.523e-05,2]
[394882561,1764061503808,-35.50974986,6.523e-05,2]
[394882562,1764061506952,1200.0,6.522e-05,2]
[394882563,1764061525777,266.47375807,6.458e-05,2]
[394882565,1764061548555,266.47375807,6.458e-05,2]
[394882566,1764061562590,300.0,6.522e-05,2]
[394882567,1764061571870,266.47375807,6.458e-05,2]
[394882568,1764061573460,159.0,6.5e-05,2]
[394882569,1764061574099,159.0,6.5e-05,2]
[394882571,1764061585737,159.0,6.5e-05,2]
[394882572,1764061594678,266.47375807,6.458e-05,2]
[394882573,1764061600210,114.87878088,6.522e-05,2]
[394882574,1764061600239,385.12121912,6.522e-05,2]
[394882575,1764061600290,500.0,6.522e-05,2]
[394882576,1764061600327,500.0,6.522e-05,2]
[394882577,1764061600379,569.19444812,6.522e-05,2]
[394882578,1764061617076,266.47375807,6.458e-05,2]
[394882579,1764061618868,202.0,9e-05,5]
[394882580,1764061622908,300.0,6.522e-05,2]
[394882581,1764061640420,266.47375807,6.458e-05,2]
[394882582,1764061644009,9733.53624193,6.443e-05,2]
[394882583,1764061644033,10000.01,6.443e-05,2]
[394882584,1764061644057,10000.01,6.443e-05,2]
[394882585,1764061765138,-150.0,6.315e-05,2]
[394882586,1764061765158,-304.5697861,6.347e-05,2]
[394882587,1764061765179,-150.0,6.379e-05,2]
[394882588,1764061765199,-500.0,6.423e-05,2]
[394882589,1764061765218,-258.15360677,6.423e-05,2]
[394882610,1764061832011,-466.26004672,6.358e-05,2]
[394882612,1764061832021,-241.84639323,6.423e-05,2]
[394882614,1764061832031,-500.0,6.423e-05,2]
[394882615,1764061832040,-500.0,6.423e-05,2]
[394882618,1764061832050,-158.65942634,6.423e-05,2]
[394882619,1764061832059,-500.50757156,6.423e-05,2]
[394882621,1764061832068,-500.0,6.423e-05,2]
[394882623,1764061832077,-300.0,6.442e-05,2]
[394882625,1764061832087,-883.0,6.442e-05,2]
[394882627,1764061832096,-214194.72656248,6.443e-05,2]
[394882629,1764061832106,-2782.094928,6.443e-05,2]
[394882632,1764061832144,-973.57,6.443e-05,2]
[394882634,1764061832155,-1112.14381274,6.443e-05,2]
[394882635,1764061832165,-256.5916681,6.443e-05,2]
[394882709,1764061838323,-772.79358313,6.443e-05,2]
[394882710,1764061838391,-707.44642292,6.443e-05,2]
[394882716,1764061841246,-122.41890791,6.443e-05,2]
[394882717,1764061841377,-322.80178946,6.443e-05,2]
[394882718,1764061843430,-200.3535833,6.443e-05,2]
[394882731,1764061844792,-478.8932768,6.443e-05,2]
[394882739,1764061951753,182.61743527,6.188e-05,2]
[394882740,1764061952399,-162.34004495,6.251e-05,2]
[394882741,1764061954342,-149.85295505,6.251e-05,2]
[394882742,1764061954364,-116.05034695,6.314e-05,2]
[394882743,1764061957273,-196.14265305,6.314e-05,2]
[394882744,1764061957295,-3.74644972,6.379e-05,2]
[394882745,1764062158317,519.40892307,6.189e-05,2]
[394882746,1764062180917,519.40892307,6.189e-05,2]
[394882747,1764062193619,160.4935022,5.48e-05,2]
[394882748,1764062202840,519.40892307,6.189e-05,2]
[394882749,1764062225462,519.40892307,6.189e-05,2]
[394882750,1764062241430,519.40892307,6.189e-05,2]
[394882751,1764062242309,-180.25141098,6.284e-05,2]
[394882752,1764062244575,-130.82012137,6.284e-05,2]
[394882753,1764062244595,-169.17987863,6.422e-05,2]
[394882754,1764062246783,-130.82012137,6.422e-05,2]
[394882755,1764062246809,-300.0,6.422e-05,2]
[394882756,1764062246831,-422.81613943,6.422e-05,2]
[394882757,1764062248991,-166.18416373,6.422e-05,2]
[394882758,1764062251177,-282.91524613,6.358e-05,2]
[394882759,1764062258981,-1647.90487524,6.358e-05,2]
[394882760,1764062260269,-290.6689341,6.422e-05,2]
[394882761,1764062262750,-320.33076274,6.422e-05,2]
[394882762,1764062262771,-179.66923726,6.422e-05,2]
[394882763,1764062264929,199.87672008,6.358e-05,2]
[394882764,1764062267676,-120.33076274,6.422e-05,2]
[394882765,1764062267696,-149.85977505,6.423e-05,2]
[394882766,1764062270478,-243.66301174,6.423e-05,2]
[394882767,1764062272781,1596.56704799,6.358e-05,2]
[394882768,1764062273220,-368.22040299,6.422e-05,2]
[394882769,1764062274344,-831.77959701,6.422e-05,2]
[394882770,1764062274882,-106.47721321,6.423e-05,2]
[394882771,1764062274906,-317.69905387,6.423e-05,2]
[394882772,1764062278461,-182.30094613,6.423e-05,2]
[394882773,1764062278493,-120.8108825,6.423e-05,2]
[394882774,1764062280729,-319.7608759,6.423e-05,2]
[394882775,1764062282636,300.0,6.422e-05,2]
[394882776,1764062283494,-59.4282416,6.423e-05,2]
[394882777,1764062283516,-176.01434201,6.423e-05,2]
[394882778,1764062290572,-166.73903918,6.423e-05,2]
[394882779,1764062292935,-157.81459599,6.423e-05,2]
[394882780,1764062292956,-142.18540401,6.423e-05,2]
[394882781,1764062295168,-152.89953238,6.423e-05,2]
[394882782,1764062300205,-167.79466007,6.423e-05,2]
[394882783,1764062300226,-18.2434127,6.423e-05,2]
[394882784,1764062302465,-162.73361027,6.423e-05,2]
[394882785,1764062304935,-208.87630306,6.423e-05,2]
[394882786,1764062307325,-110.14667397,6.423e-05,2]
[394882787,1764062307346,-112.84055511,6.423e-05,2]
[394882788,1764062310729,-179.28524712,6.423e-05,2]
[394882789,1764062314709,-207.87419777,6.423e-05,2]
[394882790,1764062314731,-13.63610634,6.423e-05,2]
[394882791,1764062318350,-151.8744075,6.423e-05,2]
[394882792,1764062322868,-54.85034503,6.423e-05,2]
[394882793,1764062322893,-283.56700614,6.438e-05,2]
[394882794,1764062324588,-199.11379493,6.438e-05,2]
[394882795,1764062328552,-17.31919893,6.438e-05,2]
[394882796,1764062328577,-229.21889301,6.438e-05,2]
[394882797,1764062331872,-270.78110699,6.438e-05,2]
[394882798,1764062331894,-29.21889301,6.438e-05,2]
[394882799,1764062335353,-167.35545874,6.438e-05,2]
[394882800,1764062336930,-371.59398822,6.438e-05,2]
[394882801,1764062336955,-165.56607946,6.438e-05,2]
[394882802,1764062340510,-182.66432245,6.438e-05,2]
[394882803,1764062342440,300.0,6.437e-05,2]
[394882804,1764062343278,-151.76959809,6.438e-05,2]
[394882805,1764062343306,-24.46318909,6.438e-05,2]
[394882806,1764062346205,-280.22517002,6.438e-05,2]
[394882807,1764062348705,-162.09581647,6.438e-05,2]
[394882808,1764062352045,-33.21582442,6.438e-05,2]
[394882809,1764062352075,-314.95086842,6.438e-05,2]
[394882810,1764062354150,-151.83330716,6.438e-05,2]
[394882811,1764062358408,-33.21582442,6.438e-05,2]
[394882812,1764062358431,-157.19301441,6.438e-05,2]
[394882813,1764062360555,-197.58520056,6.438e-05,2]
[394882814,1764062363975,-145.22178503,6.438e-05,2]
[394882815,1764062364002,-145.39101701,6.438e-05,2]
[394882816,1764062367258,-204.6205574,6.438e-05,2]
[394882817,1764062368807,-149.98842559,6.438e-05,2]
[394882818,1764062368830,-136.8769335,6.438e-05,2]
[394882819,1764062370941,-300.0,6.438e-05,2]
[394882820,1764062373376,-7.12306651,6.438e-05,2]
[394882821,1764062373403,-181.29697441,6.438e-05,2]
[394882822,1764062378011,-58.55808224,6.438e-05,2]
[394882823,1764062378034,-241.44191776,6.438e-05,2]
[394882824,1764062380806,-258.55808224,6.438e-05,2]
[394882825,1764062380835,-41.44191776,6.438e-05,2]
[394882826,1764062383218,-248.97491769,6.438e-05,2]
[394882827,1764062387206,-202.54324198,6.438e-05,2]
[394882828,1764062390064,-7.03992257,6.438e-05,2]
[394882829,1764062390091,-228.62954101,6.438e-05,2]
[394882830,1764062401542,-197.12702763,6.438e-05,2]
[394882831,1764062405812,1200.0,6.437e-05,2]
[394882832,1764062406026,-74.24343136,6.438e-05,2]
[394882833,1764062406056,-86.19037306,6.438e-05,2]
[394882834,1764062407669,-268.96871057,6.438e-05,2]
[394882835,1764062410528,-144.84091637,6.438e-05,2]
[394882836,1764062410561,-42.84157454,6.438e-05,2]
[394882837,1764062414367,-273.03395984,6.438e-05,2]
[394882838,1764062416553,-184.12446562,6.438e-05,2]
[394882839,1764062416581,-12.3062448,6.438e-05,2]
[394882840,1764062418194,-291.90094229,6.438e-05,2]
[394882841,1764062420406,-195.79281291,6.438e-05,2]
[394882842,1764062420434,-20.61063108,6.438e-05,2]
[394882843,1764062423374,-324.9763518,6.438e-05,2]
[394882844,1764062425412,-154.41301712,6.438e-05,2]
[394882845,1764062425436,-37.89515589,6.438e-05,2]
[394882846,1764062427636,-196.43071042,6.438e-05,2]
[394882847,1764062429917,-2.89075234,6.438e-05,2]
[394882848,1764062429940,-216.74451271,6.438e-05,2]
[394882849,1764062435972,-377.39408243,6.438e-05,2]
[394882850,1764062439105,-122.60591757,6.438e-05,2]
[394882851,1764062439135,-146.53032293,6.438e-05,2]
[394882852,1764062443066,-73.09179675,6.438e-05,2]
[394882853,1764062443097,-173.77971707,6.438e-05,2]
[394882854,1764062445351,-61.88974651,6.438e-05,2]
[394882855,1764062445386,-134.54096391,6.438e-05,2]
[394882856,1764062462439,300.0,6.438e-05,2]
[394882862,1764062491896,1000.0,6.438e-05,2]
[394882863,1764062493282,1000.0,6.438e-05,2]
[394882864,1764062494504,239.2763403,6.374e-05,2]
[394882865,1764062494546,1000.0,6.438e-05,2]
[394882866,1764062495734,1000.0,6.438e-05,2]
[394882867,1764062496956,1000.0,6.438e-05,2]
[394882868,1764062498213,1000.0,6.438e-05,2]
[394882869,1764062499493,1093.19571186,6.438e-05,2]
[394882870,1764062502423,196.43071042,6.374e-05,2]
[394882871,1764062523856,166.55586177,6.438e-05,2]
[394882872,1764062571056,1200.0,6.438e-05,2]
[394882873,1764062582805,300.0,6.438e-05,2]
[394882915,1764062642693,300.0,6.438e-05,2]
[394882916,1764062656800,8200.01,6.339e-05,2]
[394882917,1764062656824,10000.01,6.339e-05,2]
[394882918,1764062656847,10000.01,6.339e-05,2]
[394882919,1764062656870,10000.01,6.339e-05,2]
[394882920,1764062656893,10000.01,6.339e-05,2]
[394882921,1764062656917,10000.01,6.339e-05,2]
[394882922,1764062656941,10000.01,6.339e-05,2]
[394882923,1764062671451,3721.40757275,6.213e-05,2]
[394882924,1764062679592,531.77804236,6.213e-05,2]
[394882938,1764062759248,300.0,6.212e-05,2]
[394882939,1764062767120,300.0,6.211e-05,2]
[394882946,1764062860765,300.0,6.211e-05,2]
[394882948,1764062883122,769.0,6.211e-05,2]
[394882949,1764062902048,-469.0,6.274e-05,2]
[394882950,1764062902077,-300.0,6.274e-05,2]
[394882951,1764062902106,-300.0,6.275e-05,2]
[394882952,1764062902135,-300.0,6.275e-05,2]
[394882953,1764062902162,-206.0,6.275e-05,2]
[394882954,1764062902192,-1200.0,6.275e-05,2]